bitfinex/quotes_ETHUSD_20241223
["timestamp","ask_amount","ask_price","bid_price","bid_amount"]
[1734925019427,2.99491,3339.0,3337.9,0.92796241]
[1734925021423,2.995,3338.9,3337.9,0.92796241]
[1734925021905,2.99478,3339.2,3338.0,1.38174416]
[1734925022125,2.99477,3339.2,3338.0,10.36174416]
[1734925022334,3.0,3339.6,3338.0,10.36174416]
[1734925022502,2.99509,3338.8,3337.8,8.98]
[1734925022833,0.7735,3339.7,3337.6,3.0000074]
[1734925023036,0.807,3339.2,3337.6,7.4e-06]
[1734925023274,2.99589,3337.9,3337.6,7.4e-06]
[1734925023535,2.99571,3338.2,3337.6,7.4e-06]
[1734925023856,2.99517,3338.8,3337.6,7.4e-06]
[1734925023992,2.9948,3339.2,3337.7,8.98]
[1734925024347,2.9936,3340.5,3338.3,2.99547]
[1734925024348,2.99435,3339.7,3338.3,2.99547]
[1734925024497,2.9941,3339.9,3338.1,2.99571]
[1734925024842,0.40418723,3341.0,3338.1,2.99571]
[1734925024843,0.807,3340.8,3338.6,0.60644417]
[1734925024987,2.99215,3342.1,3339.5,2.99445]
[1734925024988,3.79984,3341.3,3339.5,2.99445]
[1734925025187,2.99293,3341.2,3339.3,3.0]
[1734925025402,3.79984,3341.3,3339.4,9.57947]
[1734925025603,3.79984,3341.3,3339.1,8.98]
[1734925025604,2.99377,3340.3,3339.1,8.98]
[1734925025834,2.9938,3340.3,3339.2,11.98]
[1734925026036,2.9938,3340.3,3338.9,3.82721328]
[1734925026037,5.98586,3341.2,3338.9,8.98]
[1734925026356,0.807,3341.1,3339.2,8.98]
[1734925026506,2.99279,3341.4,3339.6,2.99436]
[1734925026838,0.807,3341.8,3340.0,8.98]
[1734925027146,2.99314,3341.0,3339.8,3.55]
[1734925027352,0.807,3341.8,3339.6,0.68215733]
[1734925027353,2.99274,3341.5,3339.6,0.68215733]
[1734925027648,2.99333,3340.8,3339.2,9.12795731]
[1734925027813,2.99403,3340.0,3339.3,0.59186648]
[1734925027992,2.99403,3340.0,3339.1,8.98]
[1734925028336,2.9943,3339.7,3338.7,0.15305104]
[1734925028518,0.378523,3340.7,3339.0,0.61304313]
[1734925028721,2.99413,3339.9,3339.0,0.61304313]
[1734925028887,0.378523,3340.7,3339.0,1.57234744]
[1734925028888,3.0,3340.6,3339.0,1.57234744]
[1734925029093,0.378523,3340.7,3339.0,0.61304313]
[1734925029712,2.99384,3340.2,3339.0,0.61304313]
[1734925029918,3.0,3340.4,3339.0,9.59304313]
[1734925030132,0.378523,3340.7,3339.0,9.59304313]
[1734925030335,2.99364,3340.5,3339.2,2.99472]
[1734925030535,2.9933,3340.8,3339.5,2.99443]
[1734925030872,2.99269,3341.5,3340.1,11.9739]
[1734925031141,2.99247,3341.8,3340.3,2.99371]
[1734925031309,2.99259,3341.6,3340.3,2.99371]
[1734925031696,2.99271,3341.5,3340.2,3.0]
[1734925032120,2.99276,3341.4,3340.2,3.0]
[1734925032346,2.9924,3341.8,3340.7,0.59618579]
[1734925032544,2.99198,3342.3,3340.9,8.98]
[1734925032747,2.99213,3342.1,3340.9,8.98]
[1734925033150,2.99213,3342.1,3340.7,0.59618579]
[1734925033151,2.99259,3341.6,3340.7,0.59618579]
[1734925033316,2.99213,3342.1,3340.7,0.59618579]
[1734925033497,2.99262,3341.6,3340.7,0.59618579]
[1734925033700,0.754,3341.8,3340.2,3.0]
[1734925033900,2.99294,3341.2,3340.2,3.0]
[1734925034131,2.99306,3341.1,3340.2,8.98]
[1734925034300,2.99306,3341.1,3340.3,0.61065406]
[1734925034717,0.754,3342.6,3340.6,3.55]
[1734925034925,0.754,3343.0,3341.2,8.98]
[1734925035156,2.99188,3342.4,3341.2,8.98]
[1734925035364,3.291178,3342.3,3341.0,2.9931]
[1734925035569,3.291178,3342.3,3341.3,0.61029443]
[1734925036016,3.291178,3342.3,3341.0,2.9931]
[1734925036017,0.299188,3342.3,3340.8,3.0]
[1734925036217,2.99249,3341.7,3340.7,8.98]
[1734925036444,2.99249,3341.7,3341.0,0.59363151]
[1734925036633,3.0,3342.4,3340.7,8.98]
[1734925036829,2.99248,3341.8,3340.7,8.98]
[1734925037181,2.9922,3342.1,3340.9,0.58565968]
[1734925037470,3.0,3342.6,3340.9,0.58565968]
[1734925037634,2.99239,3341.9,3340.9,0.58565968]
[1734925038031,3.0,3342.1,3340.9,0.58565968]
[1734925038234,2.99186,3342.4,3340.9,0.58565968]
[1734925038235,2.99225,3342.0,3340.9,0.58565968]
[1734925038721,0.754,3341.9,3340.9,0.58565968]
[1734925039021,0.754,3342.4,3340.9,0.58565968]
[1734925039223,2.99246,3341.8,3340.7,8.98]
[1734925039448,3.0,3342.1,3340.7,8.98]
[1734925039648,2.99204,3342.2,3340.3,3.0]
[1734925039649,2.99222,3342.0,3340.4,8.98]
[1734925039852,0.754,3341.6,3339.5,8.98]
[1734925040055,2.99348,3340.6,3340.0,0.60744078]
[1734925040439,2.99316,3341.0,3340.0,0.60744078]
[1734925040661,0.754,3342.0,3340.0,0.60744078]
[1734925040868,2.99281,3341.4,3340.0,3.60138078]
[1734925041035,2.99248,3341.8,3340.4,2.99361]
[1734925041241,3.0,3342.1,3340.5,0.299361]
[1734925041456,2.99262,3341.6,3340.5,0.299361]
[1734925042068,2.99243,3341.8,3340.8,0.61013759]
[1734925042282,3.74603,3342.3,3340.8,0.61013759]
[1734925042283,4.26671596,3342.3,3340.8,0.61013759]
[1734925042495,2.99275,3341.4,3340.8,0.61013759]
[1734925042658,2.99246,3341.8,3340.6,8.98]
[1734925042986,2.99267,3341.5,3340.7,0.59317767]
[1734925043858,0.754,3342.3,3340.7,0.59317767]
[1734925044059,2.99168,3342.6,3341.1,12.53]
[1734925044387,3.51271596,3343.4,3341.5,11.98]
[1734925044589,2.99114,3343.2,3341.7,3.0]
[1734925044881,2.99161,3342.7,3341.7,11.98]
[1734925045237,1.34040569,3343.9,3342.3,2.99194]
[1734925045439,2.9908,3343.6,3342.4,8.98]
[1734925045758,2.9908,3343.6,3342.3,2.99194]
[1734925045759,3.28988,3343.6,3342.6,3.0]
[1734925045987,3.28988,3343.6,3342.6,12.56583395]
[1734925046147,3.51271596,3344.6,3342.8,3.0]
[1734925046480,2.99015,3344.4,3342.9,0.55]
[1734925046680,2.99015,3344.4,3342.7,3.0]
[1734925046681,2.99015,3344.4,3342.8,0.55]
[1734925046981,3.51271596,3344.6,3343.4,3.0]
[1734925046982,2.98991,3344.6,3343.4,3.0]
[1734925047189,0.298991,3344.6,3343.5,0.55]
[1734925047343,2.98973,3344.8,3343.6,3.0]
[1734925047535,2.98973,3344.8,3343.6,6.51271596]
[1734925047968,2.98973,3344.8,3344.1,0.59110525]
[1734925048779,2.98949,3345.1,3344.1,0.59110525]
[1734925048989,2.98955,3345.0,3344.1,0.59110525]
[1734925049193,0.298955,3344.9,3344.1,0.59110525]
[1734925049342,2.98977,3344.8,3343.2,8.98]
[1734925049548,0.754,3345.1,3343.5,3.58972753]
[1734925049886,2.99054,3343.9,3343.5,0.58972753]
[1734925050245,2.99071,3343.7,3343.1,8.98]
[1734925050991,2.99071,3343.7,3343.1,9.57871271]
[1734925051343,2.99081,3343.6,3343.1,9.57871271]
[1734925051538,0.299071,3343.7,3343.1,9.57871271]
[1734925051744,2.9907,3343.7,3343.1,9.57871271]
[1734925052265,5.98982,3344.7,3343.2,8.98]
[1734925052468,2.98922,3345.4,3343.3,3.0]
[1734925052469,2.99015,3344.4,3343.3,3.0]
[1734925053168,2.99026,3344.2,3343.3,3.0]
[1734925053369,2.99026,3344.2,3343.4,1.25787127]
[1734925053771,2.99004,3344.5,3343.4,1.25787127]
[1734925054156,2.98962,3344.9,3343.4,1.25787127]
[1734925054357,0.7691,3345.1,3343.2,8.98]
[1734925054693,3.0,3345.0,3343.2,8.98]
[1734925054880,5.98958,3345.0,3343.2,8.98]
[1734925055065,2.99007,3344.4,3343.3,0.55]
[1734925055678,2.99019,3344.3,3343.4,8.98]
[1734925055860,2.99019,3344.3,3343.3,0.55]
[1734925055861,0.7691,3345.1,3343.7,12.53]
[1734925056063,0.8005,3345.9,3343.9,3.55]
[1734925056282,2.98933,3345.3,3344.1,8.98]
[1734925056487,2.98936,3345.2,3344.1,8.98]
[1734925056657,0.8005,3345.9,3344.1,8.98]
[1734925056853,2.98911,3345.5,3344.5,0.58766284]
[1734925057072,2.98946,3345.1,3344.5,0.58766284]
[1734925057289,2.98891,3345.7,3344.5,0.58766284]
[1734925057483,2.9897,3344.9,3344.1,10.233]
[1734925058026,2.9897,3344.9,3344.2,3.0]
[1734925058176,2.9897,3344.9,3344.3,1.3233]
[1734925058372,3.0,3345.6,3344.1,8.98]
[1734925058617,2.99036,3344.1,3343.8,3.0]
[1734925058790,2.99036,3344.1,3343.6,0.5956277]
[1734925058988,3.80964,3344.9,3343.6,9.5756277]
[1734925059319,2.98998,3344.5,3343.7,3.0]
[1734925059487,0.82,3345.3,3343.7,4.35286277]
[1734925059693,0.82,3345.3,3343.6,9.5756277]
[1734925059875,2.98944,3345.1,3343.6,9.5756277]
[1734925060215,2.99034,3344.1,3343.6,0.5956277]
[1734925060416,2.99013,3344.4,3343.6,0.5956277]
[1734925060718,2.99013,3344.4,3343.7,1.25756277]
[1734925060889,3.82,3345.7,3344.0,8.98]
[1734925061091,2.98915,3345.5,3344.4,8.98]
[1734925061281,2.98915,3345.5,3344.5,3.0]
[1734925061616,0.82,3347.3,3344.8,11.98]
[1734925061819,2.98858,3346.1,3344.9,2.98962]
[1734925062018,2.98858,3346.1,3344.8,12.53]
[1734925062019,0.82,3346.9,3345.3,3.0]
[1734925062202,2.9886,3346.1,3345.4,1.31424783]
[1734925062881,2.98834,3346.4,3345.4,1.31424783]
[1734925063326,2.98705,3347.8,3345.5,8.98]
[1734925063327,2.98783,3347.0,3345.5,8.98]
[1734925063618,2.98824,3346.5,3345.5,8.98]
[1734925064007,2.98824,3346.5,3345.6,3.0]
[1734925064226,2.98824,3346.5,3345.7,1.32942478]
[1734925064422,2.9883,3346.4,3345.7,1.32942478]
[1734925064735,2.98843,3346.3,3345.7,10.30942478]
[1734925065156,2.98843,3346.3,3345.7,10.90585613]
[1734925065434,3.0,3347.1,3345.8,10.37058561]
[1734925065589,2.9881,3346.6,3345.8,10.37058561]
[1734925066132,2.98827,3346.5,3345.8,10.37058561]
[1734925066537,2.98827,3346.5,3345.7,0.59643135]
[1734925066538,0.7762,3346.3,3343.8,8.98]
[1734925066691,2.98855,3346.1,3344.0,3.81120737]
[1734925066887,2.98855,3346.1,3344.3,9.58620931]
[1734925067090,2.98964,3344.9,3344.4,8.98]
[1734925067301,0.7762,3345.4,3344.1,8.98]
[1734925067628,0.7762,3345.4,3344.1,9.878]
[1734925067946,2.98977,3344.8,3344.1,9.878]
[1734925068096,2.98991,3344.6,3344.2,8.98]
[1734925069301,0.7762,3345.4,3344.1,0.898]
[1734925069595,2.99037,3344.1,3343.9,3.0]
[1734925069945,2.99037,3344.1,3343.7,1.25756277]
[1734925069946,0.7762,3345.4,3343.8,8.98]
[1734925070148,3.8102,3345.8,3344.0,2.99041]
[1734925070302,3.0,3345.8,3344.1,1.197041]
[1734925070494,2.98918,3345.4,3344.1,1.197041]
[1734925070898,3.0,3345.8,3344.1,1.197041]
[1734925071100,3.0,3345.8,3344.2,0.55]
[1734925071314,2.98944,3345.1,3344.6,0.59539456]
[1734925071530,2.98944,3345.1,3344.6,1.60793402]
[1734925071928,2.98924,3345.4,3344.6,1.60793402]
[1734925072127,2.98906,3345.6,3344.6,1.60793402]
[1734925072128,2.98927,3345.3,3344.6,1.60793402]
[1734925072343,2.98941,3345.2,3344.6,10.58793402]
[1734925072959,2.9891,3345.5,3344.7,8.98]
[1734925073163,2.98918,3345.4,3344.8,8.98]
[1734925073324,2.9893,3345.3,3344.8,8.98]
[1734925073525,2.98909,3345.5,3344.8,8.98]
[1734925073835,2.98919,3345.4,3344.8,8.98]
[1734925074362,2.98785,3346.9,3344.9,8.98]
[1734925074546,0.8102,3346.7,3345.2,3.0]
[1734925074731,0.8102,3346.7,3345.5,3.0]
[1734925075065,2.98793,3346.8,3345.9,8.98]
[1734925075420,2.98801,3346.7,3346.0,3.0]
[1734925075620,2.98801,3346.7,3346.1,0.58695137]
[1734925075819,2.98793,3346.8,3346.1,1.31194104]
[1734925076081,2.98812,3346.6,3346.1,0.72498967]
[1734925076463,2.98793,3346.8,3346.1,0.72498967]
[1734925076837,2.98793,3346.8,3346.1,9.70498967]
[1734925077217,2.98803,3346.7,3346.1,9.70498967]
[1734925078065,2.98787,3346.9,3346.1,9.70498967]
[1734925079268,2.98792,3346.9,3346.1,9.70498967]
[1734925079837,2.98792,3346.9,3346.2,10.30941566]
[1734925080838,2.98746,3347.4,3346.3,8.98]
[1734925081184,0.17132,3347.7,3346.9,2.98783]
[1734925081386,0.17132,3347.7,3346.9,3.0]
[1734925081570,0.17132,3347.7,3347.4,3.81120737]
[1734925081740,0.17132,3347.7,3347.5,3.0]
[1734925083647,0.17132,3347.7,3347.5,5.98729]
[1734925083857,2.98608,3348.9,3347.6,8.98]
[1734925084167,2.98616,3348.8,3347.7,3.0]
[1734925084368,2.98598,3349.0,3347.8,1.496729]
[1734925084978,3.81117,3349.6,3348.0,3.0]
[1734925085186,2.9858,3349.2,3348.0,3.0]
[1734925085337,0.8257,3349.6,3348.0,3.0]
[1734925085545,0.8257,3349.6,3348.1,1.38079364]
[1734925085844,2.98574,3349.3,3348.1,1.38079364]
[1734925086044,2.9855,3349.6,3348.4,3.81120737]
[1734925086245,0.8246,3350.0,3348.5,9.58365193]
[1734925086579,0.380946,3350.0,3348.8,8.98]
[1734925086752,3.8094,3350.4,3348.9,8.98]
[1734925086957,2.98497,3350.2,3348.9,12.79120737]
[1734925087155,0.8246,3350.4,3348.9,12.79120737]
[1734925087156,0.8246,3350.4,3348.9,3.81120737]
[1734925087383,2.98517,3349.9,3348.9,12.79120737]
[1734925087553,3.80933,3350.4,3349.0,1.37478505]
[1734925087753,2.98512,3350.0,3349.0,1.37478505]
[1734925087953,3.80933,3350.4,3349.0,1.37478505]
[1734925088188,2.98489,3350.3,3349.0,1.37478505]
[1734925088339,2.98518,3349.9,3349.0,10.35478505]
[1734925089484,3.77229,3350.7,3349.1,8.98]
[1734925089683,3.77229,3350.7,3349.0,1.37478505]
[1734925089684,2.98442,3350.8,3349.5,11.98]
[1734925089885,3.1555174,3351.0,3350.0,8.98]
[1734925090046,0.1713274,3351.0,3350.4,3.81120737]
[1734925090245,0.1713274,3351.0,3350.4,6.81120737]
[1734925090460,0.1713274,3351.0,3350.2,8.98]
[1734925090641,0.1713274,3351.0,3349.9,3.81120737]
[1734925090642,2.98963,3350.5,3349.9,3.81120737]
[1734925090838,0.005,3350.5,3350.0,0.59288631]
[1734925091287,0.005,3350.5,3350.1,8.98]
[1734925091498,0.005,3350.5,3350.1,9.69948881]
[1734925091674,0.005,3350.5,3350.2,11.98]
[1734925091996,0.005,3350.5,3350.4,8.98]
[1734925092143,0.005,3350.5,3350.4,11.98]
[1734925092594,0.005,3350.5,3350.4,8.98]
[1734925095351,0.005,3350.5,3350.4,12.878]
[1734925095578,0.005,3350.5,3350.4,11.98]
[1734925096053,0.005,3350.5,3350.4,8.98]
[1734925096365,0.005,3350.5,3350.0,0.59288631]
[1734925096366,2.98484,3350.3,3350.0,0.59288631]
[1734925096581,2.98484,3350.3,3349.6,8.98]
[1734925096982,0.005,3350.5,3349.6,8.98]
[1734925097150,0.005,3350.5,3349.9,0.59807374]
[1734925097350,2.98963,3350.5,3349.9,0.59807374]
[1734925097592,0.005,3350.5,3349.9,0.59807374]
[1734925097797,0.005,3350.5,3349.9,1.55588111]
[1734925098003,0.005,3350.5,3350.1,3.0]
[1734925099003,0.005,3350.5,3350.1,5.98497]
[1734925099166,0.005,3350.5,3350.4,9.53]
[1734925099351,0.005,3350.5,3350.4,12.53]
[1734925099557,0.005,3350.5,3350.4,14.381478]
[1734925099758,0.005,3350.5,3350.4,13.831478]
[1734925100902,0.005,3350.5,3350.1,8.98]
[1734925101062,0.1713274,3351.0,3350.1,8.98]
[1734925101269,2.98436,3350.8,3350.2,8.98]
[1734925101699,0.02626233,3350.7,3350.2,8.98]
[1734925102289,2.98436,3350.8,3350.2,8.98]
[1734925102490,0.02626233,3350.7,3350.2,10.04842248]
[1734925102650,0.1713274,3351.0,3350.2,10.04842248]
[1734925102850,0.1713274,3351.0,3350.4,8.98]
[1734925103050,0.1713274,3351.0,3350.5,8.98]
[1734925103294,0.1713274,3351.0,3350.6,7.18245]
[1734925103653,0.1713274,3351.0,3350.6,4.198]
[1734925105224,2.98375,3351.5,3350.7,8.98]
[1734925105422,0.005,3352.0,3350.9,3.0]
[1734925105731,0.005,3352.0,3351.3,3.55]
[1734925105892,0.005,3352.0,3351.7,3.0]
[1734925106886,2.98257,3352.9,3351.8,8.98]
[1734925107081,0.1,3353.0,3352.2,8.98]
[1734925107497,0.1,3353.0,3352.7,8.98]
[1734925107686,0.1713274,3354.4,3352.7,8.98]
[1734925107687,0.1713274,3354.4,3352.9,8.98]
[1734925107879,3.1524974,3354.4,3353.2,8.98]
[1734925108079,0.1713274,3354.4,3353.4,8.98]
[1734925108318,0.1713274,3354.4,3353.2,8.98]
[1734925108519,0.1713274,3354.4,3353.0,1.54512016]
[1734925108520,2.98128,3354.3,3353.5,0.59642454]
[1734925109033,2.98137,3354.2,3353.5,0.59642454]
[1734925109239,3.1524974,3354.4,3353.5,0.59642454]
[1734925109381,0.56246714,3354.4,3353.5,0.59642454]
[1734925109727,2.98169,3353.8,3353.0,1.54512016]
[1734925110030,0.8316,3354.3,3352.4,3.0]
[1734925110329,2.98206,3353.4,3352.8,0.60574555]
[1734925110535,2.98189,3353.6,3352.8,0.60574555]
[1734925110827,2.98146,3354.1,3352.9,10.23857456]
[1734925111180,2.98172,3353.8,3352.9,10.23857456]
[1734925111394,2.98133,3354.2,3352.9,10.23857456]
[1734925111598,0.817,3354.3,3352.8,0.60574555]
[1734925111826,3.79827,3354.3,3352.8,0.60574555]
[1734925111984,2.98189,3353.6,3352.8,0.60574555]
[1734925112194,2.98224,3353.2,3352.8,0.60574555]
[1734925112425,2.98185,3353.7,3352.8,0.60574555]
[1734925112852,2.98196,3353.5,3352.8,0.60574555]
[1734925113136,2.98225,3353.2,3352.8,0.60574555]
[1734925113352,0.817,3354.0,3352.1,8.98]
[1734925113353,2.98242,3353.0,3352.1,8.98]
[1734925113652,2.98183,3353.7,3352.1,1.198]
[1734925113840,0.817,3353.3,3352.2,0.58413293]
[1734925114046,0.817,3352.8,3351.6,1.193415]
[1734925114227,2.98347,3351.8,3350.8,8.98]
[1734925114428,2.98354,3351.8,3351.4,0.59929901]
[1734925114643,2.98354,3351.8,3350.9,10.37684975]
[1734925114957,2.98267,3352.7,3350.9,1.39684975]
[1734925115095,2.98384,3351.4,3350.6,1.34906902]
[1734925115432,0.817,3351.8,3350.6,1.198]
[1734925115753,0.817,3351.8,3350.6,0.58622274]
[1734925115918,2.98429,3350.9,3350.0,8.98]
[1734925116098,0.817,3351.8,3350.5,0.60634467]
[1734925116303,2.98421,3351.0,3350.5,0.60634467]
[1734925116632,2.98364,3351.6,3350.5,0.60634467]
[1734925116835,0.817,3351.8,3349.7,3.94028794]
[1734925116836,0.34304987,3351.5,3349.7,3.94028794]
[1734925117144,2.98492,3350.2,3349.5,8.98]
[1734925117347,2.9847,3350.5,3349.3,8.98]
[1734925117730,2.98479,3350.4,3349.4,8.98]
[1734925118242,2.98479,3350.4,3349.5,8.98]
[1734925118464,2.98451,3350.7,3349.9,0.59047647]
[1734925118646,2.98455,3350.6,3349.9,0.59047647]
[1734925119247,2.98473,3350.4,3349.9,0.59047647]
[1734925119634,0.817,3350.9,3349.9,0.59047647]
[1734925119879,1.197126,3350.9,3349.9,0.59047647]
[1734925120179,2.98467,3350.5,3349.9,0.59047647]
[1734925120382,0.817,3350.9,3349.9,0.59047647]
[1734925120383,2.98446,3350.7,3349.9,0.59047647]
[1734925120540,0.817,3350.9,3349.9,0.59047647]
[1734925120884,2.985,3350.1,3349.9,0.59047647]
[1734925121536,2.98526,3349.8,3349.1,3.0]
[1734925121729,2.98526,3349.8,3349.4,0.58862376]
[1734925121957,2.98526,3349.8,3349.2,1.21275048]
[1734925122173,2.98508,3350.0,3349.2,1.21275048]
[1734925122676,3.77868,3350.0,3349.2,1.21275048]
[1734925123032,2.98484,3350.3,3349.3,0.59543695]
[1734925123234,2.98484,3350.3,3349.4,1.07881874]
[1734925123546,2.98455,3350.6,3349.5,9.53]
[1734925123753,2.98455,3350.6,3349.7,0.55]
[1734925123959,2.98455,3350.6,3349.8,0.953]
[1734925124156,2.98438,3350.8,3349.8,0.953]
[1734925124361,2.98455,3350.6,3349.8,0.953]
[1734925124852,2.98425,3351.0,3349.9,9.53]
[1734925125056,2.98431,3350.9,3349.9,9.53]
[1734925125289,2.98431,3350.9,3350.0,1.0483]
[1734925125644,0.8265,3351.3,3350.0,1.0483]
[1734925125645,2.984,3351.2,3350.0,1.0483]
[1734925125851,0.8265,3351.3,3349.8,0.953]
[1734925126043,0.8265,3351.3,3348.4,2.98646]
[1734925126044,2.98517,3349.9,3348.7,3.0]
[1734925126260,2.98489,3350.2,3348.7,0.15109132]
[1734925126594,2.98541,3349.7,3348.8,0.59513489]
[1734925126898,2.98516,3349.9,3348.1,8.98]
[1734925127068,3.79049753,3349.9,3348.3,0.59160772]
[1734925127268,3.79049753,3349.9,3347.8,0.15021306]
[1734925127269,3.79049753,3349.8,3347.8,0.15021306]
[1734925127496,2.98563,3349.4,3347.9,2.98693]
[1734925127868,2.98588,3349.1,3347.8,8.98]
[1734925128197,0.8246,3349.7,3348.4,0.59316207]
[1734925128694,6.79049753,3350.3,3348.4,0.59316207]
[1734925128695,2.98522,3349.9,3348.6,11.98]
[1734925128898,0.7898,3350.1,3348.7,1.55596221]
[1734925129054,2.98573,3349.3,3348.7,1.55596221]
[1734925129258,2.98573,3349.3,3348.4,0.59316207]
[1734925129694,2.98582,3349.2,3348.2,0.55]
[1734925130010,2.98582,3349.2,3348.1,0.55]
[1734925130373,2.98582,3349.2,3348.5,0.61157508]
[1734925130589,2.98589,3349.1,3348.5,0.61157508]
[1734925130755,3.79049753,3349.8,3348.5,0.61157508]
[1734925130961,2.98605,3348.9,3348.5,0.61157508]
[1734925131367,3.79049753,3349.8,3348.5,0.61157508]
[1734925131694,2.98598,3349.0,3348.5,0.61157508]
[1734925131895,2.98574,3349.3,3348.5,0.61157508]
[1734925132095,6.77580753,3349.8,3348.5,0.61157508]
[1734925132096,3.79049753,3349.8,3348.5,0.61157508]
[1734925132271,2.98608,3348.9,3347.9,0.55]
[1734925132467,2.98655,3348.4,3347.2,8.98]
[1734925132728,3.4974751,3349.1,3347.2,8.98]
[1734925133018,2.98596,3349.0,3347.8,0.59315852]
[1734925133170,2.98618,3348.8,3347.8,0.59315852]
[1734925133377,3.4974751,3349.1,3347.8,0.59315852]
[1734925133611,2.98614,3348.8,3347.8,0.59315852]
[1734925133876,2.98649,3348.5,3347.8,0.59315852]
[1734925134224,2.98661,3348.3,3347.8,0.59315852]
[1734925134377,7.2549251,3348.7,3347.1,0.15155188]
[1734925134712,7.2549251,3348.7,3347.3,0.61234859]
[1734925134713,2.98732,3347.5,3347.3,0.61234859]
[1734925134872,2.98732,3347.5,3346.1,2.98851]
[1734925134873,3.4974751,3347.5,3346.1,8.98]
[1734925135075,2.98676,3348.1,3346.0,1.17519458]
[1734925135076,2.9884,3346.3,3346.0,1.17519458]
[1734925135399,2.98847,3346.2,3346.0,1.17519458]
[1734925135605,2.98864,3346.0,3345.8,0.26838645]
[1734925135777,2.98882,3345.8,3345.7,0.85593561]
[1734925136180,2.98929,3345.3,3344.5,1.18305393]
[1734925136437,2.98953,3345.1,3344.5,1.18305393]
[1734925136790,3.4974751,3345.0,3344.5,1.18305393]
[1734925137078,2.98982,3344.7,3344.5,1.18305393]
[1734925137697,3.4974751,3345.0,3344.1,0.31212838]
[1734925137851,3.4974751,3344.6,3343.3,8.41329141]
[1734925138234,2.98988,3344.7,3343.3,8.41329141]
[1734925138453,2.98953,3345.0,3343.5,2.99085]
[1734925138681,2.98967,3344.9,3343.8,0.58598961]
[1734925139684,0.7985,3345.2,3343.8,3.57654961]
[1734925139885,0.8044,3345.7,3344.2,8.41329141]
[1734925140091,0.8044,3345.7,3344.3,0.55]
[1734925140588,4.60653408,3346.1,3344.6,8.41329141]
[1734925140891,2.98886,3345.8,3344.7,0.59011841]
[1734925141040,2.98886,3345.8,3344.8,0.47802189]
[1734925141248,3.78218,3346.1,3344.8,8.8913133]
[1734925141450,2.98866,3346.0,3344.8,8.8913133]
[1734925141644,0.7936,3346.1,3344.8,8.8913133]
[1734925141845,0.8032,3346.8,3345.3,8.41329141]
[1734925142068,0.8032,3346.8,3345.4,0.84132914]
[1734925142282,3.79114,3346.8,3345.4,0.84132914]
[1734925142444,2.98843,3346.3,3345.4,0.84132914]
[1734925142659,2.98823,3346.5,3345.3,8.41329141]
[1734925142904,0.8032,3346.8,3345.3,8.41329141]
[1734925143203,0.8032,3346.8,3345.5,2.98905]
[1734925143514,0.8032,3347.3,3345.9,8.41329141]
[1734925143825,0.8032,3347.7,3346.1,8.41329141]
[1734925144008,2.98817,3346.6,3346.2,8.41329141]
[1734925144173,2.98757,3347.2,3345.3,8.41329141]
[1734925144368,2.98821,3346.5,3345.4,9.90855655]
[1734925145167,2.98798,3346.8,3345.4,12.89771655]
[1734925145405,2.98798,3346.8,3345.4,13.50295898]
[1734925145758,3.366787,3347.1,3345.5,0.55]
[1734925146105,0.8032,3347.3,3345.6,8.41329141]
[1734925146304,0.8032,3347.3,3345.7,0.55]
[1734925146508,3.79069,3347.3,3346.0,0.55]
[1734925146868,3.0,3348.0,3346.1,8.41329141]
[1734925146869,2.98728,3347.6,3346.1,8.41329141]
[1734925147104,0.7811,3347.7,3346.1,8.41329141]
[1734925147265,3.76822,3347.7,3346.2,9.30962055]
[1734925147920,2.98742,3347.4,3346.2,9.30962055]
[1734925148080,0.7811,3347.7,3346.2,9.30962055]
[1734925148266,2.98758,3347.2,3346.2,9.91097171]
[1734925148470,2.98758,3347.2,3346.2,9.30962055]
[1734925148682,2.98767,3347.1,3346.2,9.30962055]
[1734925148898,0.298758,3347.2,3346.2,8.41329141]
[1734925149101,2.98818,3346.6,3346.2,8.41329141]
[1734925149330,2.98775,3347.0,3345.6,8.41329141]
[1734925149494,2.98822,3346.5,3345.6,8.41329141]
[1734925149696,0.7811,3346.9,3345.6,10.00485783]
[1734925149895,2.98814,3346.6,3345.6,10.00485783]
[1734925150235,0.7811,3346.9,3345.0,8.41329141]
[1734925150385,0.7811,3345.5,3343.6,8.41329141]
[1734925150582,0.7811,3345.5,3343.9,8.41329141]
[1734925150781,2.98938,3345.2,3344.0,0.59122879]
[1734925151043,0.7811,3345.5,3344.0,0.59122879]
[1734925151342,1.37412384,3346.4,3344.3,8.41329141]
[1734925151560,1.37412384,3346.4,3344.0,0.59122879]
[1734925151561,1.37412384,3346.4,3344.5,8.41329141]
[1734925151771,2.98921,3345.4,3344.5,8.41329141]
[1734925152329,2.98837,3346.3,3344.6,8.41329141]
[1734925152541,2.98885,3345.8,3344.6,8.41329141]
[1734925152863,0.7811,3346.4,3344.6,8.41329141]
[1734925153013,2.98883,3345.8,3344.7,0.92546205]
[1734925153461,3.7811,3346.4,3344.7,0.92546205]
[1734925153666,0.7811,3346.4,3344.8,0.55]
[1734925153846,0.7811,3346.4,3345.0,0.55]
[1734925154049,0.7811,3346.4,3345.0,3.53952]
[1734925154447,0.7811,3346.4,3345.0,0.55]
[1734925154648,2.98852,3346.2,3345.0,0.55]
[1734925154962,2.98852,3346.2,3345.1,0.59559674]
[1734925155196,0.7811,3346.4,3345.2,8.41329141]
[1734925155325,2.98875,3345.9,3345.2,8.41329141]
[1734925155870,0.7811,3346.4,3345.2,8.41329141]